[Event "Vienna Championship-C 2022"]
[Site "Vienna"]
[Date "2022.09.19"]
[Round "3.1"]
[White "Brunner, Felix"]
[Black "Lappe, Manfred"]
[Result "0-1"]
[ECO "C54"]
[WhiteElo "1541"]
[BlackElo "1692"]
[Annotator "NA COMBH"]
[PlyCount "70"]
[EventDate "2022.09.17"]
[EventType "swiss"]
[EventCountry "AUT"]
[SourceTitle "playchess.com"]
[Source "ChessBase"]
[SourceQuality "1"]
[TimeControl "5400+30"]

1. e4 {[%emt 0:00:02]} e5 {[%emt 0:00:06]} 2. Nf3 {[%emt 0:00:03]} Nc6 {[%emt 0:00:40]} 3. Bc4 {[%emt 0:00:03]} Bc5 {[%emt 0:01:11]} 4. c3 {[%emt 0:00:03]} Nf6 {[%emt 0:01:04]} 5. d3 {[%emt 0:00:03]} O-O {[%emt 0:00:31]} 6. O-O {[%emt 0:00:05]} d6 {[%emt 0:00:31]} 7. Re1 {[%emt 0:01:08]} Be6 {[%emt 0:00:30]} 8. Bb5 {[%emt 0:02:02]} Ng4 {[%emt 0:01:12]} 9. Re2 {[%emt 0:01:03]} f5 {[%emt 0:00:42]} 10. d4 {[%emt 0:07:31]} fxe4 {[%emt 0:01:24]} 11. Rxe4 {[%emt 0:04:20]} Bf5 {[%emt 0:01:47]} 12. Rxg4 {[%emt 0:06:53]} Bxg4 {[%emt 0:00:25]} 13. dxc5 {[%emt 0:00:08]} e4 {[%emt 0:00:12]} 14. Qd5+ {[%emt 0:00:21]} Kh8 {[%emt 0:00:38]} 15. Qxe4 {[%emt 0:07:44]} Bxf3 {[%emt 0:00:22]} 16. gxf3 {[%emt 0:00:03]} Re8 {[%emt 0:03:49]} 17. Qf4 {[%emt 0:09:39]} Re1+ {[%emt 0:03:38]} 18. Kg2 {[%emt 0:01:01]} Qe8 {[%emt 0:00:48]} 19. Bd2 {[%emt 0:04:33]} Re6 {[%emt 0:00:48]} 20. Bd3 {[%emt 0:02:44]} Ne5 {[%emt 0:01:23]} 21. Bc2 {[%emt 0:00:39]} Ng6 {[%emt 0:03:17]} 22. Bxg6 {[%emt 0:04:45]} Rxg6+ {[%emt 0:00:15]} 23. Kh1 {[%emt 0:02:00]} Qb5 {[%emt 0:01:23]} 24. Na3 {[%emt 0:03:47]} Qxb2 {[%emt 0:00:40]} 25. Re1 {[%emt 0:01:21]} Qxa3 {[%emt 0:00:46]} 26. Qe4 {[%emt 0:00:21]} Rf6 {[%emt 0:01:23]} 27. Qxb7 {[%emt 0:03:17]} Raf8 {[%emt 0:00:18]} 28. Qxc7 {[%emt 0:00:59]} dxc5 {[%emt 0:01:01]} 29. Bg5 {[%emt 0:02:16]} Qxc3 {[%emt 0:00:57]} 30. Qe7 {[%emt 0:00:55]} Qxf3+ {[%emt 0:00:26]} 31. Kg1 {[%emt 0:00:11]} Qxf2+ {[%emt 0:00:22]} 32. Kh1 {[%emt 0:00:03]} Qf3+ {[%emt 0:00:15]} 33. Kg1 {[%emt 0:00:04]} Qg4+ {[%emt 0:00:16]} 34. Kh1 {[%emt 0:00:14]} Rf1+ {[%emt 0:00:11]} 35. Rxf1 {[%emt 0:00:05]} Rxf1# {[%emt 0:00:02]} 0-1

[Event "Vienna Championship-C 2022"]
[Site "Vienna"]
[Date "2022.09.19"]
[Round "3.2"]
[White "Bendl, Felix"]
[Black "Brueggeboes, Anton"]
[Result "0-1"]
[ECO "B20"]
[WhiteElo "1645"]
[BlackElo "1506"]
[Annotator "NA COMBH"]
[PlyCount "48"]
[EventDate "2022.09.17"]
[EventType "swiss"]
[EventCountry "AUT"]
[SourceTitle "playchess.com"]
[Source "ChessBase"]
[SourceQuality "1"]
[TimeControl "5400+30"]

1. e4 {[%emt 0:00:23]} c5 {[%emt 0:00:04]} 2. b3 {[%emt 0:00:12]} e5 {[%emt 0:00:18]} 3. Bb2 {[%emt 0:00:24]} d6 {[%emt 0:00:23]} 4. Bb5+ {[%emt 0:01:56]} Bd7 {[%emt 0:00:16]} 5. Bxd7+ {[%emt 0:00:06]} Qxd7 {[%emt 0:00:13]} 6. d3 {[%emt 0:00:22]} g6 {[%emt 0:00:19]} 7. Nf3 {[%emt 0:01:42]} Bg7 {[%emt 0:00:42]} 8. O-O {[%emt 0:02:35]} Ne7 {[%emt 0:00:39]} 9. Re1 {[%emt 0:01:04]} O-O {[%emt 0:00:14]} 10. Nc3 {[%emt 0:00:35]} Nbc6 {[%emt 0:01:10]} 11. Ne2 {[%emt 0:02:12]} f5 {[%emt 0:03:16]} 12. exf5 {[%emt 0:04:47]} gxf5 {[%emt 0:00:16]} 13. Ng3 {[%emt 0:02:08]} Qe8 {[%emt 0:08:19]} 14. Nd2 {[%emt 0:04:43]} Rd8 {[%emt 0:08:21]} 15. Qc1 {[%emt 0:18:48]} Nd5 {[%emt 0:09:00]} 16. Nf3 {[%emt 0:03:30]} f4 {[%emt 0:02:32]} 17. Ne4 {[%emt 0:01:18]} Qg6 {[%emt 0:01:10]} 18. Qd1 {[%emt 0:01:49]} Nd4 {[%emt 0:05:39]} 19. Nxd4 {[%emt 0:04:20]} cxd4 {[%emt 0:00:03]} 20. Ba3 {[%emt 0:02:09]} f3 {[%emt 0:00:43]} 21. g3 {[%emt 0:00:12]} Nf4 {[%emt 0:01:07]} 22. Kh1 {[%emt 0:03:37]} Ne2 {[%emt 0:00:49]} 23. Nd2 {[%emt 0:02:04]} Qh5 {[%emt 0:00:59]} 24. Nf1 {[%emt 0:02:28]} Qh3 {[%emt 0:01:55]} 0-1

[Event "Vienna Championship-C 2022"]
[Site "Vienna"]
[Date "2022.09.19"]
[Round "3.3"]
[White "Gerold, Arnold"]
[Black "Roehrbacher, Franz"]
[Result "1-0"]
[ECO "C50"]
[WhiteElo "1708"]
[BlackElo "1673"]
[Annotator "NA COMBH"]
[PlyCount "97"]
[EventDate "2022.09.17"]
[EventType "swiss"]
[EventCountry "AUT"]
[SourceTitle "playchess.com"]
[Source "ChessBase"]
[SourceQuality "1"]
[TimeControl "5400+30"]

1. e4 {[%emt 1:31:00]} e5 {[%emt 1:31:00]} 2. Nf3 {[%emt 0:00:30]} Nc6 {[%emt 0:00:30]} 3. Bc4 {[%emt 0:00:30]} Bc5 {[%emt 0:00:30]} 4. O-O {[%emt 0:00:30]} Nf6 {[%emt 0:00:30]} 5. d4 {[%emt 0:00:30]} Bxd4 {[%emt 0:00:30]} 6. Nxd4 {[%emt 0:00:30]} Nxd4 {[%emt 0:00:30]} 7. f4 {[%emt 0:00:30]} d6 {[%emt 0:00:30]} 8. fxe5 {[%emt 0:00:30]} dxe5 {[%emt 0:00:30]} 9. Bg5 {[%emt 0:00:30]} Be6 {[%emt 0:00:30]} 10. Na3 {[%emt 0:00:30]} h6 {[%emt 0:00:30]} 11. Bxf6 {[%emt 0:00:30]} gxf6 {[%emt 0:00:30]} 12. c3 {[%emt 0:00:30]} Bxc4 {[%emt 0:00:30]} 13. Nxc4 {[%emt 0:00:30]} Ne6 {[%emt 0:00:30]} 14. Qxd8+ {[%emt 0:00:30]} Nxd8 {[%emt 0:00:30]} 15. Rxf6 {[%emt 0:00:30]} Nc6 {[%emt 0:00:30]} 16. Raf1 {[%emt 0:00:30]} Rh7 {[%emt 0:00:30]} 17. Ne3 {[%emt 0:00:30]} Rd8 {[%emt 0:00:30]} 18. Nd5 {[%emt 0:00:30]} Kf8 {[%emt 0:00:30]} 19. Nxc7 {[%emt 0:00:30]} Rd2 {[%emt 0:00:30]} 20. R6f2 {[%emt 0:00:30]} Rxf2 {[%emt 0:00:30]} 21. Rxf2 {[%emt 0:00:30]} Ke7 {[%emt 0:00:30]} 22. Nd5+ {[%emt 0:00:30]} Kf8 {[%emt 0:00:30]} 23. Nf6 {[%emt 0:00:30]} Rg7 {[%emt 0:00:30]} 24. Nd7+ {[%emt 0:00:30]} Ke7 {[%emt 0:00:30]} 25. Nf6 {[%emt 0:00:30]} Rg6 {[%emt 0:00:30]} 26. Nd5+ {[%emt 0:00:30]} Ke6 {[%emt 0:00:30]} 27. h3 {[%emt 0:00:30]} Ne7 {[%emt 0:00:30]} 28. Nc7+ {[%emt 0:00:30]} Kd7 {[%emt 0:00:30]} 29. Rxf7 {[%emt 0:00:30]} Kd8 {[%emt 0:00:30]} 30. Nd5 {[%emt 0:00:30]} Nxd5 {[%emt 0:00:30]} 31. exd5 {[%emt 0:00:30]} Rd6 {[%emt 0:00:30]} 32. Rxb7 {[%emt 0:00:30]} Rxd5 {[%emt 0:00:30]} 33. Rxa7 {[%emt 0:00:30]} Rd1+ {[%emt 0:00:30]} 34. Kh2 {[%emt 0:00:30]} e4 {[%emt 0:00:30]} 35. Ra4 {[%emt 0:00:30]} e3 {[%emt 0:00:30]} 36. Re4 {[%emt 0:00:30]} Re1 {[%emt 0:00:30]} 37. Kg3 {[%emt 0:00:30]} Re2 {[%emt 0:00:30]} 38. b4 {[%emt 0:00:30]} Rxa2 {[%emt 0:00:30]} 39. Rxe3 {[%emt 0:00:30]} Rc2 {[%emt 0:00:30]} 40. Kh4 {[%emt 0:00:30]} Rxg2 {[%emt 0:00:30]} 41. Kh5 {[%emt 0:00:30]} Kd7 {[%emt 0:00:30]} 42. Kxh6 {[%emt 0:00:30]} Kd6 {[%emt 0:00:30]} 43. h4 {[%emt 0:00:30]} Kd5 {[%emt 0:00:30]} 44. Re8 {[%emt 0:00:30]} Kc4 {[%emt 0:00:30]} 45. Rc8+ {[%emt 0:00:30]} Kb5 {[%emt 0:00:30]} 46. h5 {[%emt 0:00:30]} Rg4 {[%emt 0:00:30]} 47. Rc5+ {[%emt 0:00:30]} Kb6 {[%emt 0:00:30]} 48. Rg5 {[%emt 0:00:30]} Rc4 {[%emt 0:00:30]} 49. Rg3 {[%emt 0:00:30]} 1-0

[Event "Vienna Championship-C 2022"]
[Site "Vienna"]
[Date "2022.09.19"]
[Round "3.5"]
[White "Unger, Alexander"]
[Black "Ruck, Helmut"]
[Result "1-0"]
[ECO "B02"]
[WhiteElo "1456"]
[BlackElo "1662"]
[Annotator "NA COMBH"]
[PlyCount "75"]
[EventDate "2022.09.17"]
[EventType "swiss"]
[EventCountry "AUT"]
[SourceTitle "playchess.com"]
[Source "ChessBase"]
[SourceQuality "1"]
[TimeControl "5400+30"]

1. e4 {[%emt 0:00:04]} Nf6 {[%emt 0:03:19]} 2. Nc3 {[%emt 0:00:27]} d5 {[%emt 0:00:01]} 3. exd5 {[%emt 0:00:15]} Nxd5 {[%emt 0:00:02]} 4. Bc4 {[%emt 0:00:15]} Nb6 {[%emt 0:00:02]} 5. Bb3 {[%emt 0:01:41]} Nc6 {[%emt 0:00:01]} 6. Qf3 {[%emt 0:03:42]} e6 {[%emt 0:00:54]} 7. Nge2 {[%emt 0:02:33]} Be7 {[%emt 0:03:26]} 8. O-O {[%emt 0:01:27]} Na5 {[%emt 0:00:26]} 9. d3 {[%emt 0:00:50]} Nxb3 {[%emt 0:00:03]} 10. axb3 {[%emt 0:00:02]} c6 {[%emt 0:01:22]} 11. Qg3 {[%emt 0:07:55]} g6 {[%emt 0:06:10]} 12. Bf4 {[%emt 0:04:09]} Nd5 {[%emt 0:00:42]} 13. Nxd5 {[%emt 0:00:55]} Qxd5 {[%emt 0:04:33]} 14. Nc3 {[%emt 0:01:42]} Qd8 {[%emt 0:06:14]} 15. Na4 {[%emt 0:07:38]} Bd7 {[%emt 0:21:33]} 16. Bc7 {[%emt 0:01:29]} Qc8 {[%emt 0:00:29]} 17. Bb6 {[%emt 0:25:04]} O-O {[%emt 0:05:10]} 18. Nc5 {[%emt 0:07:40]} Bd8 {[%emt 0:13:02]} 19. Nxd7 {[%emt 0:06:24]} Qxd7 {[%emt 0:00:10]} 20. Bxa7 {[%emt 0:00:11]} b6 {[%emt 0:01:04]} 21. Bb8 {[%emt 0:00:32]} Rxa1 {[%emt 0:00:28]} 22. Rxa1 {[%emt 0:00:02]} Bf6 {[%emt 0:00:28]} 23. Be5 {[%emt 0:00:26]} Be7 {[%emt 0:01:00]} 24. h3 {[%emt 0:02:13]} Qd5 {[%emt 0:00:22]} 25. Bc3 {[%emt 0:03:07]} Bd6 {[%emt 0:00:50]} 26. Qh4 {[%emt 0:01:20]} Be5 {[%emt 0:00:48]} 27. Qc4 {[%emt 0:01:58]} Qd6 {[%emt 0:02:32]} 28. d4 {[%emt 0:04:31]} Bg7 {[%emt 0:03:37]} 29. Bb4 {[%emt 0:01:24]} c5 {[%emt 0:00:02]} 30. dxc5 {[%emt 0:00:27]} Qc6 {[%emt 0:01:52]} 31. cxb6 {[%emt 0:00:35]} Qxc4 {[%emt 0:00:16]} 32. bxc4 {[%emt 0:00:02]} Rc8 {[%emt 0:01:28]} 33. b7 {[%emt 0:00:44]} Rb8 {[%emt 0:00:01]} 34. Ra8 {[%emt 0:00:01]} Be5 {[%emt 0:00:14]} 35. c5 {[%emt 0:01:22]} f5 {[%emt 0:00:19]} 36. c6 {[%emt 0:00:47]} Kf7 {[%emt 0:00:05]} 37. Rxb8 {[%emt 0:00:17]} Bxb8 {[%emt 0:00:02]} 38. Ba5 {[%emt 0:00:10]} 1-0

[Event "Vienna Championship-C 2022"]
[Site "Vienna"]
[Date "2022.09.19"]
[Round "3.6"]
[White "Twyble, Michael S"]
[Black "Giefing, Josef"]
[Result "1/2-1/2"]
[ECO "A24"]
[WhiteElo "2245"]
[BlackElo "1771"]
[Annotator "RC"]
[PlyCount "128"]
[EventDate "2022.09.17"]
[EventType "swiss"]
[EventCountry "AUT"]
[SourceTitle "playchess.com"]
[Source "ChessBase"]
[SourceQuality "1"]
[TimeControl "5400+30"]

1. c4 {[%emt 0:06:24]} Nf6 {[%emt 0:00:25]} 2. Nc3 {[%emt 0:00:28]} g6 {[%emt 0:00:13]} 3. g3 {[%emt 0:00:08]} Bg7 {[%emt 0:00:12]} 4. Bg2 {[%emt 0:00:12]} O-O {[%emt 0:00:56]} 5. e4 {[%emt 0:00:40]} e5 {[%emt 0:00:47]} 6. d3 {[%emt 0:00:19]} d6 {[%emt 0:00:46]} 7. Nge2 {[%emt 0:01:10]} c6 {[%emt 0:03:08]} 8. O-O {[%emt 0:01:53]} a5 {[%emt 0:02:36]} 9. Be3 {[%emt 0:03:33]} Na6 {[%emt 0:02:16]} 10. a3 {[%emt 0:02:39]} Bd7 {[%emt 0:05:07]} 11. Qd2 {[%emt 1:18:34]} Ng4 {[%emt 0:00:35]} 12. Rac1 {[%emt 0:00:00]} Nxe3 {[%emt 0:00:22]} 13. Qxe3 {[%emt 0:00:00]} Nc5 {[%emt 0:02:33]} 14. b4 {[%emt 0:00:00]} axb4 {[%emt 0:01:17]} 15. axb4 {[%emt 0:00:00]} Nb3 {[%emt 0:00:22]} 16. Rb1 {[%emt 0:00:00]} Nd4 {[%emt 0:00:14]} 17. Qd2 {[%emt 0:00:00]} h5 {[%emt 0:01:29]} 18. Nxd4 {[%emt 0:00:00]} exd4 {[%emt 0:00:06]} 19. Ne2 {[%emt 0:00:00]} h4 {[%emt 0:00:20]} 20. Nf4 {[%emt 0:00:00]} g5 {[%emt 0:01:05]} 21. Nh5 {[%emt 0:00:00]} h3 {[%emt 0:00:31]} 22. Bh1 {[%emt 0:00:00]} Bh6 {[%emt 0:00:13]} 23. f4 {[%emt 0:00:00]} g4 {[%emt 0:04:01]} 24. Qb2 {[%emt 0:00:00]} f6 {[%emt 0:01:21]} 25. f5 {[%emt 0:00:00]} Be3+ {[%emt 0:02:07]} 26. Rf2 {[%emt 0:00:00]} Ra7 {[%emt 0:03:51]} 27. Nf4 {[%emt 0:00:00]} Qa8 {[%emt 0:00:17]} 28. Kf1 {[%emt 0:00:00]} Bxf2 {[%emt 0:00:42]} 29. Qxf2 {[%emt 0:00:00]} Ra2 {[%emt 0:00:06]} 30. Ne2 {[%emt 0:00:00]} Rd2 {[%emt 0:00:55]} 31. Qxd4 {[%emt 0:00:00]} Rxe2 {[%emt 0:00:31]} 32. Kxe2 {[%emt 0:00:00]} Qa2+ {[%emt 0:00:22]} 33. Qb2 {[%emt 0:00:00]} Ra8 {[%emt 0:00:08]} 34. Qxa2 {[%emt 0:00:00]} Rxa2+ {[%emt 0:00:05]} 35. Ke3 {[%emt 0:00:00]} Rxh2 {[%emt 0:00:04]} 36. Kf4 {[%emt 0:00:00]} Rd2 {[%emt 0:00:08]} 37. Kxg4 {[%emt 0:00:00]} Rxd3 {[%emt 0:00:06]} 38. Kxh3 {[%emt 0:00:00]} Rc3 {[%emt 0:00:08]} 39. Rd1 {[%emt 0:00:00]} d5 {[%emt 0:00:09]} 40. cxd5 {[%emt 0:00:00]} cxd5 {[%emt 0:00:02]} 41. Rxd5 {[%emt 0:00:00]} Bc6 {[%emt 0:00:02]} 42. Rd6 {[%emt 0:00:00]} Kf7 {[%emt 0:00:04]} 43. Rd4 {[%emt 0:00:00]} Rb3 {[%emt 0:08:12]} 44. Bg2 {[%emt 0:00:00]} Re3 {[%emt 0:01:44]} 45. Kg4 {[%emt 0:00:00]} Re2 {[%emt 0:01:37]} 46. Bf3 {[%emt 0:00:00]} Re1 {[%emt 0:03:12]} 47. Kf4 {[%emt 0:00:00]} Ke7 {[%emt 0:02:08]} 48. g4 {[%emt 0:00:00]} Rf1 {[%emt 0:00:30]} 49. Rd1 {[%emt 0:00:14]} Rf2 {[%emt 0:00:44]} 50. Rg1 {[%emt 0:01:23]} Rb2 {[%emt 0:00:14]} 51. g5 {[%emt 0:01:48]} fxg5+ {[%emt 0:00:25]} 52. Rxg5 {[%emt 0:00:46]} Rxb4 {[%emt 0:00:24]} 53. Rg7+ {[%emt 0:00:39]} Kf8 {[%emt 0:04:40]} 54. Rc7 {[%emt 0:02:34]} Rb3 {[%emt 0:04:10]} 55. Bh5 {[%emt 0:02:00]} Rb4 {[%emt 0:00:31]} 56. Rf7+ {[%emt 0:00:40]} Kg8 {[%emt 0:00:03]} 57. Re7 {[%emt 0:00:14]} Kf8 {[%emt 0:00:07]} 58. Re5 {[%emt 0:00:48]} Kg7 {[%emt 0:00:32]} 59. Be8 {[%emt 0:00:36]} Bxe8 {[%emt 0:09:57]} 60. Rxe8 {[%emt 0:00:02]} Kf6 {[%emt 0:01:19]} 61. Rd8 {[%emt 0:00:55]} b5 {[%emt 0:00:56]} 62. Rd6+ {[%emt 0:00:35]} Ke7 {[%emt 0:00:15]} 63. Ke5 {[%emt 0:00:24]} Rxe4+ {[%emt 0:00:29]} 64. Kxe4 {[%emt 0:00:03]} Kxd6 {[%emt 0:00:02]} 1/2-1/2

[Event "Vienna Championship-C 2022"]
[Site "Vienna"]
[Date "2022.09.19"]
[Round "3.7"]
[White "Nicolussi, Hieronymus"]
[Black "Meixner, Peter"]
[Result "1-0"]
[ECO "D00"]
[WhiteElo "1239"]
[BlackElo "1669"]
[Annotator "NA COMBH"]
[PlyCount "101"]
[EventDate "2022.09.17"]
[EventType "swiss"]
[EventCountry "AUT"]
[SourceTitle "playchess.com"]
[Source "ChessBase"]
[SourceQuality "1"]
[TimeControl "5400+30"]

1. d4 {[%emt 0:00:02]} d5 {[%emt 0:00:32]} 2. e3 {[%emt 0:00:04]} Nf6 {[%emt 0:00:24]} 3. Bd3 {[%emt 0:00:07]} e6 {[%emt 0:01:01]} 4. Nd2 {[%emt 0:00:06]} c5 {[%emt 0:00:57]} 5. c3 {[%emt 0:00:06]} Bd6 {[%emt 0:02:39]} 6. f4 {[%emt 0:00:09]} cxd4 {[%emt 0:02:00]} 7. cxd4 {[%emt 1:33:26]} Nc6 {[%emt 0:01:25]} 8. Ngf3 {[%emt 0:00:00]} Qe7 {[%emt 0:03:23]} 9. Ne5 {[%emt 0:00:00]} Bd7 {[%emt 0:02:38]} 10. O-O {[%emt 0:00:00]} O-O-O {[%emt 0:02:43]} 11. a3 {[%emt 0:00:00]} Rdg8 {[%emt 0:01:17]} 12. b4 {[%emt 0:00:00]} a6 {[%emt 0:06:49]} 13. Nb3 {[%emt 0:00:00]} Ne4 {[%emt 0:05:08]} 14. Qc2 {[%emt 0:00:00]} f5 {[%emt 0:01:34]} 15. Nxc6 {[%emt 0:00:00]} Bxc6 {[%emt 0:02:47]} 16. Bxa6 {[%emt 0:00:00]} Kb8 {[%emt 0:01:12]} 17. Bd3 {[%emt 0:00:00]} Rc8 {[%emt 0:00:26]} 18. Nc5 {[%emt 0:00:00]} Nxc5 {[%emt 0:04:38]} 19. dxc5 {[%emt 0:00:00]} Bc7 {[%emt 0:00:26]} 20. Bb2 {[%emt 0:00:00]} Rhg8 {[%emt 0:05:44]} 21. b5 {[%emt 0:07:00]} Be8 {[%emt 0:00:47]} 22. b6 {[%emt 0:00:00]} Bxb6 {[%emt 0:00:38]} 23. Bd4 {[%emt 0:00:00]} Bxc5 {[%emt 0:04:26]} 24. Rfc1 {[%emt 0:00:00]} b6 {[%emt 0:02:52]} 25. Rab1 {[%emt 0:00:00]} Bd7 {[%emt 0:03:13]} 26. Bxc5 {[%emt 0:00:00]} Rxc5 {[%emt 0:06:46]} 27. Qxc5 {[%emt 0:00:00]} Qxc5 {[%emt 0:00:48]} 28. Rxc5 {[%emt 0:00:00]} Kb7 {[%emt 0:00:24]} 29. Rc3 {[%emt 0:00:00]} Ra8 {[%emt 0:00:07]} 30. Bb5 {[%emt 0:00:00]} Bxb5 {[%emt 0:01:19]} 31. Rxb5 {[%emt 0:00:00]} Ra4 {[%emt 0:00:28]} 32. Rcb3 {[%emt 0:00:00]} Ra6 {[%emt 0:00:09]} 33. Kf2 {[%emt 0:00:00]} Kc6 {[%emt 0:00:08]} 34. Ke2 {[%emt 0:00:00]} h6 {[%emt 0:00:07]} 35. Kd3 {[%emt 0:00:00]} g5 {[%emt 0:00:33]} 36. Kd4 {[%emt 0:00:00]} Ra4+ {[%emt 0:00:30]} 37. R5b4 {[%emt 0:00:00]} Ra6 {[%emt 0:00:33]} 38. Ke5 {[%emt 0:00:00]} gxf4 {[%emt 0:00:46]} 39. exf4 {[%emt 0:00:00]} d4 {[%emt 0:01:33]} 40. Kxd4 {[%emt 0:09:30]} Kc7 {[%emt 0:01:02]} 41. Ke5 {[%emt 0:00:00]} Kd7 {[%emt 0:00:32]} 42. Rxb6 {[%emt 0:00:00]} Ra5+ {[%emt 0:00:09]} 43. R6b5 {[%emt 0:00:00]} Ra7 {[%emt 0:00:07]} 44. Rb7+ {[%emt 0:00:00]} Rxb7 {[%emt 0:00:05]} 45. Rxb7+ {[%emt 0:00:00]} Kc8 {[%emt 0:00:05]} 46. Rh7 {[%emt 0:00:00]} h5 {[%emt 0:00:05]} 47. Kd6 {[%emt 0:00:00]} e5 {[%emt 0:00:07]} 48. fxe5 {[%emt 0:00:00]} f4 {[%emt 0:00:06]} 49. e6 {[%emt 0:00:00]} f3 {[%emt 0:00:08]} 50. e7 {[%emt 0:00:00]} Kb8 {[%emt 0:00:03]} 51. e8=R# {[%emt 0:05:30]} 1-0

[Event "Vienna Championship-C 2022"]
[Site "Vienna"]
[Date "2022.09.19"]
[Round "3.8"]
[White "Schreib, Christian"]
[Black "Zikic, Goran"]
[Result "1/2-1/2"]
[ECO "C56"]
[WhiteElo "1589"]
[BlackElo "1340"]
[Annotator "NA COMBH"]
[PlyCount "33"]
[EventDate "2022.09.17"]
[EventType "swiss"]
[EventCountry "AUT"]
[SourceTitle "playchess.com"]
[Source "ChessBase"]
[SourceQuality "1"]
[TimeControl "5400+30"]

1. e4 {[%emt 0:00:30]} e5 {[%emt 0:00:30]} 2. Nf3 {[%emt 0:00:30]} d6 {[%emt 0:00:30]} 3. d4 {[%emt 0:00:30]} exd4 {[%emt 0:00:30]} 4. Nxd4 {[%emt 0:00:30]} Bd7 {[%emt 0:00:30]} 5. Bc4 {[%emt 0:00:30]} Nc6 {[%emt 0:00:30]} 6. O-O {[%emt 0:00:30]} Nf6 {[%emt 0:00:30]} 7. Nc3 {[%emt 0:00:30]} Be7 {[%emt 0:00:30]} 8. Nf3 {[%emt 0:00:30]} Bg4 {[%emt 0:00:30]} 9. Bf4 {[%emt 0:00:30]} Nh5 {[%emt 0:00:30]} 10. Bg3 {[%emt 0:00:30]} O-O {[%emt 0:00:30]} 11. Be2 {[%emt 0:00:30]} Nxg3 {[%emt 0:00:30]} 12. hxg3 {[%emt 0:00:30]} Bf6 {[%emt 0:00:30]} 13. Nd5 {[%emt 0:00:30]} Bxf3 {[%emt 0:00:30]} 14. Nxf6+ {[%emt 0:00:30]} Qxf6 {[%emt 0:00:30]} 15. gxf3 {[%emt 0:00:30]} Nd4 {[%emt 0:00:30]} 16. c3 {[%emt 0:00:30]} Nxe2+ {[%emt 0:00:30]} 17. Qxe2 {[%emt 0:00:30]} 1/2-1/2

[Event "Vienna Championship-C 2022"]
[Site "Vienna"]
[Date "2022.09.19"]
[Round "3.11"]
[White "Mair, Josef"]
[Black "Pavlov, Julian"]
[Result "0-1"]
[ECO "C30"]
[WhiteElo "1620"]
[BlackElo "1306"]
[Annotator "NA COMBH"]
[PlyCount "29"]
[EventDate "2022.09.17"]
[EventType "swiss"]
[EventCountry "AUT"]
[SourceTitle "playchess.com"]
[Source "ChessBase"]
[SourceQuality "1"]
[TimeControl "5400+30"]

1. e4 {[%emt 0:02:08]} e5 {[%emt 0:00:01]} 2. f4 {[%emt 0:00:09]} d6 {[%emt 0:00:10]} 3. Nf3 {[%emt 0:00:10]} Nc6 {[%emt 0:00:05]} 4. Bc4 {[%emt 0:00:10]} Nf6 {[%emt 0:00:11]} 5. d3 {[%emt 0:00:45]} Be7 {[%emt 0:00:07]} 6. O-O {[%emt 0:00:16]} O-O {[%emt 0:00:06]} 7. c3 {[%emt 0:00:22]} Be6 {[%emt 0:00:29]} 8. Bb5 {[%emt 0:01:16]} h6 {[%emt 0:00:10]} 9. f5 {[%emt 0:00:32]} Bd7 {[%emt 0:00:05]} 10. h3 {[%emt 0:00:33]} a6 {[%emt 0:00:02]} 11. Ba4 {[%emt 0:00:30]} Re8 {[%emt 0:02:07]} 12. g4 {[%emt 0:01:43]} Nh7 {[%emt 0:00:39]} 13. Be3 {[%emt 0:00:44]} Ng5 {[%emt 0:00:06]} 14. Kg2 {[%emt 0:00:36]} Nxf3 {[%emt 0:00:40]} 15. Qxf3 {[%emt 0:00:25]} 0-1

[Event "Vienna Championship-C 2022"]
[Site "Vienna"]
[Date "2022.09.19"]
[Round "3.12"]
[White "Eichhorn, Elisabeth"]
[Black "Gockner, Hans"]
[Result "1-0"]
[ECO "D02"]
[WhiteElo "1306"]
[BlackElo "1592"]
[Annotator "NA COMBH"]
[PlyCount "73"]
[EventDate "2022.09.17"]
[EventType "swiss"]
[EventCountry "AUT"]
[SourceTitle "playchess.com"]
[Source "ChessBase"]
[SourceQuality "1"]
[TimeControl "5400+30"]

1. d4 {[%emt 0:00:02]} d5 {[%emt 0:00:15]} 2. Bf4 {[%emt 0:00:08]} e6 {[%emt 0:02:34]} 3. Nf3 {[%emt 0:00:17]} Bd6 {[%emt 0:00:30]} 4. Bg3 {[%emt 0:00:20]} Nf6 {[%emt 0:01:16]} 5. e3 {[%emt 0:00:27]} O-O {[%emt 0:01:13]} 6. Bd3 {[%emt 0:00:09]} Nbd7 {[%emt 0:02:43]} 7. Nbd2 {[%emt 0:01:27]} h6 {[%emt 0:05:11]} 8. c3 {[%emt 0:00:44]} c5 {[%emt 0:02:22]} 9. Bxd6 {[%emt 0:01:39]} Re8 {[%emt 0:00:58]} 10. h3 {[%emt 0:09:46]} c4 {[%emt 0:00:59]} 11. Bc2 {[%emt 0:01:04]} b5 {[%emt 0:03:10]} 12. g4 {[%emt 0:05:11]} Nb6 {[%emt 0:03:34]} 13. Bf4 {[%emt 0:03:20]} Bb7 {[%emt 0:00:23]} 14. Ke2 {[%emt 0:03:33]} Ne4 {[%emt 0:00:53]} 15. Qg1 {[%emt 0:01:58]} Nd7 {[%emt 0:05:28]} 16. h4 {[%emt 0:02:22]} b4 {[%emt 0:06:12]} 17. Nxe4 {[%emt 0:10:00]} dxe4 {[%emt 0:00:22]} 18. Ne5 {[%emt 0:07:29]} Nxe5 {[%emt 0:05:14]} 19. Bxe5 {[%emt 0:07:00]} b3 {[%emt 0:00:36]} 20. axb3 {[%emt 0:00:57]} Qc8 {[%emt 0:00:34]} 21. b4 {[%emt 0:02:11]} Qd8 {[%emt 0:02:19]} 22. h5 {[%emt 0:02:15]} f6 {[%emt 0:00:27]} 23. Bg3 {[%emt 0:00:50]} Qd7 {[%emt 0:03:13]} 24. Qg2 {[%emt 0:02:33]} e5 {[%emt 0:00:43]} 25. dxe5 {[%emt 0:04:33]} Qxg4+ {[%emt 0:02:17]} 26. Ke1 {[%emt 0:00:38]} Rxe5 {[%emt 0:04:19]} 27. Rh4 {[%emt 0:03:22]} Qg5 {[%emt 0:02:31]} 28. Qh1 {[%emt 0:02:14]} Ree8 {[%emt 0:02:32]} 29. Bxe4 {[%emt 0:01:35]} f5 {[%emt 0:03:19]} 30. Bxb7 {[%emt 0:07:36]} Rxe3+ {[%emt 0:00:36]} 31. fxe3 {[%emt 0:01:15]} Qxe3+ {[%emt 0:00:24]} 32. Kf1 {[%emt 0:00:37]} Qd3+ {[%emt 0:02:44]} 33. Kg2 {[%emt 0:01:42]} Re8 {[%emt 0:01:50]} 34. Re1 {[%emt 0:01:50]} Rf8 {[%emt 0:02:47]} 35. Qf1 {[%emt 0:01:06]} Qd7 {[%emt 0:00:36]} 36. Qxc4+ {[%emt 0:01:06]} Kh7 {[%emt 0:00:44]} 37. Bf3 {[%emt 0:00:23]} 1-0